bitfinex/quotes_SOLUSD_20250903
["timestamp","ask_amount","ask_price","bid_price","bid_amount"]
[1756883066366,1e-08,208.99,208.98,13.59559401]
[1756883066546,1e-08,208.99,208.98,18.38159994]
[1756883066934,0.72,209.04,209.01,26.0]
[1756883067134,0.72,209.04,209.02,26.0]
[1756883067361,0.78,209.06,209.02,30.12600593]
[1756883067540,0.06,209.06,209.04,4.12600593]
[1756883067747,0.78,209.06,209.04,4.12600593]
[1756883068148,0.78,209.06,209.05,4.7835446]
[1756883068456,0.06,209.06,209.05,34.90955053]
[1756883068956,0.78,209.06,209.05,30.7835446]
[1756883069459,0.78,209.06,209.05,4.7835446]
[1756883071963,4.90600593,209.06,209.05,4.7835446]
[1756883073253,0.78,209.06,209.05,4.7835446]
[1756883074667,0.06,209.06,209.05,9.56955053]
[1756883074974,0.06,209.06,209.05,5.4435446]
[1756883075143,0.06,209.06,209.05,9.56955053]
[1756883076470,0.06,209.06,209.05,8.90955053]
[1756883076965,0.06,209.06,209.05,4.7835446]
[1756883077138,0.06,209.06,209.05,8.90955053]
[1756883078060,0.06,209.06,209.05,9.56955053]
[1756883078360,0.06,209.08,209.07,26.0]
[1756883078558,0.06,209.08,209.07,109.82600593]
[1756883078761,0.06,209.08,209.07,110.48600593]
[1756883079665,0.06,209.08,209.07,115.26909293]
[1756883081359,0.06,209.08,209.07,152.68909293]
[1756883081660,0.06,209.08,209.07,115.26909293]
[1756883083661,0.06,209.08,209.07,114.60909293]
[1756883084242,0.06,209.08,209.07,115.30909293]
[1756883086542,4.12600593,209.15,209.07,127.26681044]
[1756883086543,0.68,209.14,209.07,127.26681044]
[1756883086742,0.68,209.14,209.09,4.12600593]
[1756883086960,0.68,209.13,209.09,4.12600593]
[1756883087367,0.68,209.12,209.09,4.12600593]
[1756883087566,0.68,209.11,209.07,122.44080451]
[1756883087756,0.68,209.1,209.07,159.86080451]
[1756883087957,0.68,209.1,209.07,122.44080451]
[1756883088846,0.06,209.11,209.07,126.56681044]
[1756883089043,0.74,209.11,209.07,127.26681044]
[1756883089671,0.74,209.11,209.07,123.14080451]
[1756883090066,0.74,209.11,209.07,127.26681044]
[1756883090656,0.06,209.11,209.08,4.82600593]
[1756883091073,0.06,209.11,209.1,4.12600593]
[1756883091276,0.06,209.11,209.1,81.12159994]
[1756883091277,1e-08,209.11,209.1,81.12159994]
[1756883091573,1e-08,209.11,209.1,81.82159994]
[1756883091875,1e-08,209.13,209.11,13.59559401]
[1756883092057,1e-08,209.13,209.12,41.52600593]
[1756883092262,1e-08,209.13,209.12,117.8]
[1756883092480,1e-08,209.13,209.12,121.92600593]
[1756883092773,1e-08,209.13,209.12,126.70794931]
[1756883097868,1e-08,209.13,209.12,122.58194338]
[1756883098055,1e-08,209.13,209.12,126.70794931]
[1756883098573,1e-08,209.13,209.12,140.30354332]
[1756883099081,1e-08,209.13,209.12,60.60354332]
[1756883099275,1e-08,209.13,209.12,60.88786646]
[1756883099766,1e-08,209.13,209.12,140.58786646]
[1756883100154,1e-08,209.13,209.12,102.90354332]
[1756883100356,1e-08,209.13,209.12,139.58354332]
[1756883100556,1e-08,209.13,209.12,140.28354332]
[1756883101179,1e-08,209.13,209.12,136.15753739]
[1756883101680,1e-08,209.13,209.12,140.28354332]
[1756883103566,0.68000001,209.13,209.12,30.78194338]
[1756883103767,0.68000001,209.13,209.12,68.16194338]
[1756883104259,0.68000001,209.13,209.12,4.78194338]
[1756883104660,0.68000001,209.13,209.08,4.78285823]
[1756883104661,4.80600594,209.13,209.08,4.78285823]
[1756883104862,4.12600593,209.1,209.08,4.78285823]
[1756883105090,0.68,209.09,209.08,4.78285823]
[1756883105384,0.68,209.09,209.08,30.78285823]
[1756883105590,4.80600593,209.09,209.05,42.1635446]
[1756883105788,4.80600593,209.08,209.05,42.1635446]
[1756883105961,0.68,209.07,209.05,42.1635446]
[1756883106358,0.68,209.1,209.05,42.1635446]
[1756883106562,0.68,209.09,209.05,42.1635446]
[1756883106783,0.68,209.08,209.05,54.12240611]
[1756883108172,4.12600593,209.09,209.05,54.12240611]
[1756883108387,0.68,209.08,209.05,54.12240611]
[1756883108666,0.68,209.07,209.06,0.03]
[1756883108894,4.80600593,209.07,209.06,0.03]
[1756883114770,0.68,209.07,209.06,0.03]
[1756883115198,4.80600593,209.07,209.06,0.03]
[1756883119798,4.12600593,209.07,209.06,0.03]
[1756883120301,4.82600593,209.07,209.06,0.03]
[1756883121598,3.34069711,209.07,209.06,0.03]
[1756883123602,8.12378411,209.07,209.03,0.03]
[1756883123801,5.483087,209.07,209.03,0.03]
[1756883123999,2.64069711,209.04,209.03,0.03]
[1756883124176,40.00069711,209.04,209.03,0.03]
[1756883124376,40.70069711,209.04,209.03,0.03]
[1756883125494,3.34069711,209.04,209.03,0.03]
[1756883125673,2.64069711,209.04,209.03,0.03]
[1756883126592,3.34069711,209.04,209.03,0.03]
[1756883126795,1.91704009,209.09,209.03,0.03]
[1756883127102,2.64069711,209.06,209.03,0.73]
[1756883127318,2.64069711,209.06,209.04,0.7]
[1756883127482,3.34069711,209.05,209.03,0.03]
[1756883127683,2.64069711,209.04,209.03,0.03]
[1756883130599,2.64069711,209.09,209.04,13.59559401]
[1756883130905,0.06,209.11,209.04,13.59559401]
[1756883130906,2.70069711,209.11,209.07,26.0]
[1756883131204,2.70069711,209.11,209.08,0.7]
[1756883131405,2.64069711,209.09,209.07,26.7]
[1756883131582,2.64069711,209.08,209.05,26.0]
[1756883131782,2.64069711,209.06,209.05,26.0]
[1756883132190,2.64069711,209.06,209.05,31.4835446]
[1756883132384,0.76,209.11,209.05,31.4835446]
[1756883132385,2.64069711,209.08,209.05,31.4835446]
[1756883132613,2.64069711,209.08,209.06,0.7]
[1756883132916,2.64069711,209.08,209.05,30.7835446]
[1756883133207,2.64069711,209.1,209.06,0.7]
[1756883133397,2.70069711,209.11,209.07,0.7]
[1756883133599,2.64069711,209.09,209.07,0.7]
[1756883134207,2.64069711,209.09,209.08,4.78285823]
[1756883136708,3.34069711,209.09,209.06,4.78314498]
[1756883137018,2.64069711,209.07,209.06,4.78314498]
[1756883137819,3.34069711,209.07,209.04,4.78356978]
[1756883137994,0.7,209.1,209.04,31.48356978]
[1756883138195,2.64069711,209.05,209.04,31.48356978]
[1756883138829,2.64069711,209.05,209.03,0.03]
[1756883138993,3.34069711,209.04,209.03,0.03]
[1756883139198,2.64069711,209.04,209.03,0.03]
[1756883139418,3.34069711,209.04,209.03,0.03]
[1756883139623,0.7,209.04,209.03,0.03]
[1756883139916,3.34069711,209.04,209.03,0.03]
[1756883140526,38.06,209.08,209.03,0.03]
[1756883140726,2.64069711,209.04,209.03,0.03]
[1756883140899,2.64069711,209.06,209.03,0.03]
[1756883141106,0.7,209.1,209.03,0.73]
[1756883141301,0.06,209.11,209.03,29.37069711]
[1756883141501,2.64069711,209.09,209.04,0.68]
[1756883141719,2.64069711,209.09,209.04,3.32069711]
[1756883142027,2.64069711,209.09,209.05,0.68]
[1756883142402,2.64069711,209.09,209.06,0.68]
[1756883142906,0.06,209.11,209.07,26.68]
[1756883143104,2.70069711,209.11,209.07,26.68]
[1756883143302,0.06,209.11,209.08,0.68]
[1756883143543,0.06,209.11,209.08,3.32069711]
[1756883143703,0.06,209.11,209.09,0.68]
[1756883143896,2.64069711,209.1,209.07,26.0]
[1756883144218,2.64069711,209.08,209.04,7.42447056]
[1756883144419,2.64069711,209.05,209.04,4.78377344]
[1756883145204,0.06,209.06,209.05,26.0]
[1756883145399,2.70069711,209.06,209.05,26.0]
[1756883145601,2.70069711,209.06,209.04,4.78377344]
[1756883145809,0.06,209.06,209.04,4.78377344]
[1756883146004,0.06,209.06,209.04,5.46377344]
[1756883146226,2.64069711,209.05,209.04,5.46377344]
[1756883148223,2.64069711,209.05,209.04,30.78377344]
[1756883148427,2.64069711,209.05,209.04,31.46377344]
[1756883148931,2.64069711,209.05,209.04,4.78377344]
[1756883149312,0.06,209.06,209.04,4.78377344]
[1756883149519,2.64069711,209.05,209.04,4.78377344]
[1756883149922,3.36069711,209.05,209.03,30.81397411]
[1756883150235,3.36069711,209.04,209.03,4.81397411]
[1756883150422,2.64069711,209.04,209.03,4.81397411]
[1756883151339,2.64069711,209.04,209.03,0.03]
[1756883152734,0.06,209.06,209.03,0.03]
[1756883153032,2.64069711,209.04,209.03,0.03]
[1756883153738,2.64069711,209.05,209.03,0.71]
[1756883154322,0.06,209.06,209.03,0.71]
[1756883154630,2.64069711,209.04,209.03,0.03]
[1756883155430,3.36069711,209.04,209.03,0.03]
[1756883156912,2.70069711,209.06,209.03,0.03]
[1756883157138,3.42069711,209.06,209.03,0.03]
[1756883157519,2.64069711,209.05,209.03,0.03]
[1756883159725,3.36069711,209.04,209.03,0.03]
[1756883160417,0.72,209.04,209.03,0.03]
[1756883160742,2.64069711,209.04,209.03,0.03]
[1756883161338,0.06,209.06,209.03,0.71]
[1756883161529,0.06,209.06,209.04,4.78377344]
[1756883163442,0.06,209.11,209.05,29.32069711]
[1756883163615,0.06,209.11,209.1,26.0]
[1756883164322,0.06,209.11,209.07,16.74080451]
[1756883164521,0.06,209.09,209.08,3.53446999]
[1756883165042,0.06,209.09,209.08,4.21446999]
[1756883165750,0.06,209.09,209.08,8.99732822]
[1756883166537,0.06,209.09,209.08,11.63802533]
[1756883166847,0.06,209.11,209.1,26.0]
[1756883167046,0.06,209.11,209.1,32.1751671]
[1756883167369,0.06,209.11,209.1,32.8551671]
[1756883167843,0.06,209.11,209.1,37.63756786]
[1756883168045,0.06,209.11,209.1,34.99687075]
[1756883168627,0.06,209.11,209.1,34.31687075]
[1756883168942,0.06,209.11,209.1,8.31687075]
[1756883169646,3.42069711,209.11,209.1,3.53446999]
[1756883170629,3.42069711,209.11,209.04,4.78377344]
[1756883170941,2.64069711,209.09,209.05,3.49546238]
[1756883171147,2.64069711,209.09,209.06,3.49546238]
[1756883171352,2.64069711,209.09,209.07,3.49546238]
[1756883171537,6.99814626,209.09,209.08,3.49546238]
[1756883171741,7.65814626,209.09,209.08,3.49546238]
[1756883172443,7.65814626,209.09,209.04,8.28058631]
[1756883172643,0.66,209.08,209.05,3.4965895]
[1756883172840,0.66,209.07,209.06,3.4965895]
[1756883173572,0.66,209.07,209.04,3.49890649]
[1756883173866,6.99814626,209.05,209.03,0.03]
[1756883174069,4.78286051,209.08,209.04,3.49912514]
[1756883174247,4.78286051,209.08,209.03,0.03]
[1756883174431,4.78286051,209.08,209.04,3.49924378]
[1756883174636,4.78286051,209.08,209.03,0.03]
[1756883174637,0.66,209.07,209.03,0.03]
[1756883174874,0.66,209.07,209.04,3.49923925]
[1756883175055,4.78286051,209.08,209.03,0.03]
[1756883175367,6.99814626,209.04,209.03,0.03]
[1756883175660,6.99814626,209.05,209.03,4.19899487]
[1756883175852,37.34,209.06,209.04,3.49899487]
[1756883176162,0.66,209.05,209.03,0.03]
[1756883177143,6.99814626,209.04,209.03,0.03]
[1756883177345,44.33814626,209.04,209.03,0.03]
[1756883177653,44.99814626,209.04,209.03,3.52907533]
[1756883178758,44.99814626,209.04,209.03,0.03]
[1756883180739,49.7819197,209.04,209.03,0.03]
[1756883180942,50.06624284,209.04,209.03,0.03]
[1756883181444,53.29128476,209.04,209.03,0.03]
[1756883182646,48.50751132,209.04,209.03,0.03]
[1756883182842,0.66,209.04,209.03,0.03]
[1756883183371,47.58318818,209.04,209.03,0.03]
[1756883183673,48.24318818,209.04,209.03,0.03]
[1756883187281,53.02696162,209.04,209.03,0.03]
[1756883187455,48.24318818,209.04,209.03,0.03]
[1756883188357,47.58318818,209.04,209.03,0.03]
[1756883189772,48.52751132,209.04,209.03,0.03]
[1756883190072,66.90687877,209.04,209.03,0.03]
[1756883190277,92.90687877,209.04,209.03,0.03]
[1756883190478,94.8247461,209.04,209.03,0.03]
[1756883191667,13.87991715,209.03,209.0,0.03]
[1756883191869,34.54276852,209.01,209.0,0.03]
[1756883192073,67.77354583,209.01,209.0,0.03]
[1756883192449,68.43354583,209.01,209.0,0.03]
[1756883193375,77.34722859,209.01,209.0,0.03]
[1756883193548,13.87991715,209.0,208.98,0.03]
[1756883193750,41.77354583,208.99,208.98,0.03]
[1756883194070,56.02913984,208.99,208.98,0.03]
[1756883195377,60.81405777,208.99,208.98,0.03]
[1756883196769,18.66913984,208.99,208.98,0.03]
[1756883196974,41.77354583,208.99,208.98,0.03]
[1756883197561,20.0,209.07,208.98,0.7]
[1756883197762,4.12922269,208.99,208.98,0.7]
[1756883197960,41.48922269,208.99,208.98,0.03]
[1756883198153,42.43354583,208.99,208.98,0.03]
[1756883198353,44.35168907,208.99,208.98,0.03]
[1756883199670,49.136607,208.99,208.98,0.03]
[1756883199984,62.73220101,208.99,208.98,0.03]
[1756883200660,57.28728308,208.99,208.98,0.03]
[1756883200860,41.77354583,208.99,208.98,0.03]
[1756883201286,43.69168907,208.99,208.98,0.03]
[1756883201582,6.33168907,208.99,208.98,0.03]
[1756883201770,41.48922269,208.99,208.98,0.73]
[1756883202581,4.12922269,208.99,208.98,0.73]
[1756883202776,41.48922269,208.99,208.98,0.73]
[1756883203174,41.48922269,208.99,208.98,0.03]
[1756883204362,42.19922269,208.99,208.98,0.03]
[1756883204556,42.48354583,208.99,208.98,0.03]
[1756883204756,52.05431084,208.99,208.98,0.03]
[1756883205560,58.15349793,208.99,208.98,0.03]
[1756883207469,0.28432314,208.97,208.95,0.03]
[1756883207669,97.41241357,208.96,208.95,0.03]
[1756883207984,98.12241357,208.96,208.95,0.03]
[1756883208288,98.40673671,208.96,208.95,0.03]
[1756883209288,65.12234161,208.96,208.95,0.03]
[1756883209466,50.10832693,208.96,208.95,0.03]
[1756883209670,87.46832693,208.96,208.95,0.03]
[1756883209973,92.25393183,208.96,208.95,0.03]
[1756883210173,103.19234161,208.96,208.95,0.03]
[1756883210880,0.28432314,208.95,208.92,0.03]
[1756883211076,105.11112893,208.96,208.92,0.03]
[1756883211077,0.28432314,208.93,208.92,0.03]
[1756883211395,47.58840978,208.93,208.92,0.03]
[1756883211897,47.58840978,208.93,208.92,0.73]
[1756883213684,47.58840978,208.93,208.92,0.03]
[1756883214370,48.58273292,208.93,208.92,0.03]
[1756883214909,66.96461898,208.93,208.92,0.03]
[1756883216374,29.60461898,208.93,208.92,0.03]
[1756883216697,73.89273292,208.93,208.92,0.03]
[1756883217783,78.67902497,208.93,208.92,0.03]
[1756883218093,92.98461898,208.93,208.92,0.03]
[1756883218476,82.7562092,208.93,208.92,0.03]
[1756883218676,92.98461898,208.93,208.92,0.03]
[1756883219085,92.27461898,208.93,208.92,0.03]
[1756883219279,92.98461898,208.93,208.92,0.03]
[1756883219687,92.27461898,208.93,208.92,0.03]
[1756883220394,87.48832693,208.93,208.92,0.03]
[1756883221181,92.27461898,208.93,208.92,0.03]
[1756883221382,87.48832693,208.93,208.92,0.03]
[1756883221891,89.40711425,208.93,208.92,0.03]
[1756883224627,94.9034063,208.93,208.92,0.03]
[1756883224834,24.10832693,208.91,208.9,0.03]
[1756883225002,61.48832693,208.91,208.9,0.03]
[1756883225188,62.19832693,208.91,208.9,0.03]
[1756883225390,64.11748251,208.91,208.9,0.03]
[1756883226087,0.28432314,208.9,208.89,0.03]
[1756883226300,10.51273292,208.9,208.89,0.03]
[1756883226496,0.28432314,208.9,208.89,0.03]
[1756883226695,89.4074825,208.9,208.89,0.03]
[1756883226907,89.4074825,208.9,208.87,0.73]
[1756883226908,94.90446191,208.9,208.87,0.03]
[1756883227094,94.90446191,208.9,208.78,0.03]
[1756883227095,26.0,208.84,208.78,0.03]
[1756883227290,0.28432314,208.82,208.81,1e-08]
[1756883227492,0.28432314,208.78,208.77,0.1]
[1756883227719,0.28432314,208.74,208.72,0.03]
[1756883227915,26.0,208.7,208.65,0.7]
[1756883228085,70.40123758,208.7,208.65,0.7]
[1756883228286,74.8267983,208.7,208.65,0.7]
[1756883228509,4.14123758,208.66,208.65,0.7]
[1756883228812,44.44123758,208.66,208.63,0.7]
[1756883229013,4.14123758,208.64,208.63,0.7]
[1756883229215,44.44123758,208.64,208.6,0.7]
[1756883229399,10.26264219,208.61,208.52,4.79570305]
[1756883229597,10.26264219,208.56,208.54,26.0]
[1756883229799,10.26264219,208.57,208.54,26.0]
[1756883230110,10.26264219,208.57,208.55,0.7]
[1756883230313,10.26264219,208.57,208.55,26.7]
[1756883230504,10.26264219,208.56,208.49,4.79639311]
[1756883230813,40.3,208.58,208.5,10.26264219]
[1756883231020,40.3,208.58,208.51,10.96264219]
[1756883231021,10.26264219,208.57,208.51,10.96264219]
[1756883231226,10.26264219,208.56,208.54,26.0]
[1756883231602,10.26264219,208.56,208.55,0.68]
[1756883231999,40.3,208.58,208.55,5.47501318]
[1756883232198,26.99432314,208.67,208.56,0.68]
[1756883232526,13.87991715,208.65,208.56,0.68]
[1756883232734,10.26264219,208.58,208.56,0.68]
[1756883232909,0.28432314,208.65,208.56,0.68]
[1756883233109,10.26264219,208.58,208.56,0.68]
[1756883233303,10.26264219,208.57,208.56,0.68]
[1756883234802,50.58264219,208.57,208.56,0.68]
[1756883235001,40.32,208.57,208.56,0.68]
[1756883235226,50.58264219,208.57,208.56,0.68]
[1756883236342,50.58264219,208.57,208.56,5.47478327]
[1756883236835,50.58264219,208.57,208.56,5.50478327]
[1756883238521,50.52264219,208.57,208.56,5.50478327]
[1756883239512,50.52264219,208.57,208.56,0.71]
[1756883240043,40.22,208.57,208.56,5.50478327]
[1756883240519,0.28432314,208.65,208.56,5.50478327]
[1756883240719,10.26264219,208.59,208.57,0.68]
[1756883240933,50.42264219,208.59,208.57,0.68]
[1756883241414,10.26264219,208.58,208.57,0.68]
[1756883241614,10.26264219,208.58,208.56,0.03]
[1756883241921,50.38264219,208.57,208.56,5.50478327]
[1756883242508,50.38264219,208.57,208.56,0.03]
[1756883243519,7.0352905,208.57,208.56,0.03]
[1756883243720,47.1552905,208.57,208.56,0.03]
[1756883244345,47.1352905,208.57,208.56,0.71]
[1756883244513,47.1352905,208.57,208.56,0.03]
[1756883244720,47.1352905,208.57,208.56,0.71]
[1756883245745,47.1152905,208.57,208.56,0.03]
[1756883246533,47.0552905,208.57,208.56,0.03]
[1756883247348,47.7752905,208.57,208.56,0.03]
[1756883248946,47.0552905,208.57,208.56,0.03]
[1756883249523,47.7752905,208.57,208.56,0.03]
[1756883250934,47.0552905,208.57,208.56,0.03]
[1756883251525,43.39356773,208.57,208.56,0.03]
[1756883252845,42.67356773,208.57,208.56,0.03]
[1756883253244,43.39356773,208.57,208.56,0.03]
[1756883254554,54.29216179,208.57,208.56,0.03]
[1756883254953,59.08671517,208.57,208.56,0.03]
[1756883256162,0.72,208.57,208.56,0.03]
[1756883256336,39.8,208.57,208.56,0.03]
[1756883256535,42.45356773,208.57,208.56,0.71]
[1756883256870,2.65356773,208.58,208.57,4.79455338]
[1756883257039,42.45356773,208.58,208.57,5.47455338]
[1756883257435,2.65356773,208.6,208.57,5.47455338]
[1756883257758,42.41356773,208.59,208.58,0.68]
[1756883259369,39.76,208.59,208.58,5.47432352]
[1756883260632,42.41356773,208.59,208.58,5.47432352]
[1756883260845,39.76,208.59,208.58,5.47432352]
[1756883261668,42.41356773,208.59,208.56,0.03]
[1756883261881,42.31356773,208.58,208.57,0.72]
[1756883262160,42.31356773,208.58,208.56,4.82474656]
[1756883262480,2.65356773,208.57,208.56,0.03]
[1756883265446,42.31356773,208.58,208.56,0.03]
[1756883267078,2.65356773,208.57,208.56,0.03]
[1756883267249,6.19078952,208.57,208.56,0.03]
[1756883267961,39.52,208.57,208.56,0.75]
[1756883268150,0.68,208.65,208.56,3.40356773]
[1756883268339,2.65356773,208.62,208.57,0.72]
[1756883268538,2.65356773,208.6,208.57,0.72]
[1756883268781,2.65356773,208.58,208.56,0.03]
[1756883268977,39.5,208.57,208.56,0.03]
[1756883269181,39.5,208.57,208.56,0.75]
[1756883271583,39.5,208.57,208.56,5.54478327]
[1756883271965,4.79268947,208.66,208.56,5.54478327]
[1756883271966,39.42,208.59,208.56,34.198351]
[1756883272173,2.65356773,208.65,208.59,26.0]
[1756883272512,45.64471732,208.64,208.6,0.72]
[1756883272689,42.99114959,208.63,208.61,0.72]
[1756883272886,3.57114959,208.62,208.59,26.0]
[1756883273197,3.57114959,208.62,208.56,16.81174145]
[1756883273198,3.57114959,208.61,208.6,0.72]
[1756883273369,6.22471732,208.61,208.56,4.82478327]
[1756883273690,2.65356773,208.58,208.56,0.03]
[1756883273894,2.65356773,208.59,208.57,0.72]
[1756883274194,42.95288566,208.58,208.56,0.03]
[1756883274364,39.38,208.58,208.56,0.03]
[1756883274686,42.03356773,208.58,208.56,0.03]
[1756883275485,2.65356773,208.58,208.56,0.03]
[1756883275670,2.65356773,208.61,208.57,0.72]
[1756883275874,42.91367567,208.6,208.58,0.72]
[1756883276086,3.57367567,208.59,208.56,0.75]
[1756883276271,39.34,208.6,208.57,0.72]
[1756883276475,3.5736808,208.59,208.56,0.03]
[1756883276795,2.65356773,208.59,208.56,0.03]
[1756883276965,39.32,208.58,208.56,0.03]
[1756883277383,41.97356773,208.58,208.56,0.03]
[1756883277989,2.65356773,208.59,208.56,0.03]
[1756883278166,39.28,208.6,208.58,2.65356773]
[1756883278364,39.28,208.61,208.59,3.37356773]
[1756883278585,39.28,208.62,208.59,0.72]
[1756883279682,2.65356773,208.64,208.59,0.72]
[1756883279683,2.65356773,208.64,208.6,4.79386385]
[1756883279880,42.8528203,208.63,208.6,5.51386385]
[1756883280083,39.28,208.63,208.6,5.51386385]
[1756883280407,0.06,208.69,208.61,0.72]
[1756883280574,42.81293635,208.68,208.63,2.65356773]
[1756883280775,3.57293635,208.67,208.63,2.65356773]
[1756883281099,2.65356773,208.64,208.6,4.79386385]
[1756883281272,39.24,208.68,208.58,4.79432352]
[1756883281273,2.65356773,208.61,208.58,4.79432352]
[1756883281472,39.9,208.61,208.56,31.54458118]
[1756883281791,2.65356773,208.57,208.56,0.03]
[1756883282093,41.87356773,208.57,208.56,0.03]
[1756883282465,42.55356773,208.57,208.56,0.03]
[1756883285882,47.34812111,208.57,208.56,0.03]
[1756883286075,51.20366484,208.57,208.56,0.03]
[1756883286809,47.63244425,208.57,208.56,0.03]
[1756883287175,71.84230918,208.57,208.56,0.03]
[1756883289806,13.87991715,208.56,208.53,0.03]
[1756883289979,2.93789087,208.54,208.53,0.03]
[1756883290381,3.61789087,208.54,208.53,0.03]
[1756883290583,17.21348488,208.54,208.53,0.03]
[1756883290777,43.21348488,208.54,208.53,0.03]
[1756883291905,48.00872799,208.54,208.53,0.03]
[1756883292409,39.59559401,208.52,208.51,0.03]
[1756883292589,81.30916174,208.52,208.51,0.03]
[1756883292790,81.98916174,208.52,208.51,0.03]
[1756883293307,42.92916174,208.52,208.51,0.03]
[1756883293505,81.98916174,208.52,208.51,0.03]
[1756883294002,86.78486479,208.52,208.51,0.03]
[1756883294208,87.06918793,208.52,208.51,0.03]
[1756883295511,28.65356773,208.52,208.51,0.03]
[1756883295812,41.65356773,208.52,208.51,0.03]
[1756883296110,2.65356773,208.52,208.51,0.03]
[1756883296320,41.93789087,208.52,208.51,0.03]
[1756883296494,47.41359392,208.52,208.51,0.03]
[1756883297886,49.91625872,208.52,208.51,0.03]
[1756883299513,63.51185273,208.52,208.51,0.03]
[1756883300095,26.0,208.49,208.43,0.7]
[1756883300320,2.65356773,208.44,208.43,0.7]
[1756883300625,41.59356773,208.44,208.43,0.7]
[1756883301608,41.59356773,208.44,208.4,0.7]
[1756883301796,2.65356773,208.41,208.37,4.79915534]
[1756883302016,38.94,208.4,208.37,4.79915534]
[1756883302402,38.94,208.4,208.38,0.7]
[1756883303129,14.42134359,208.46,208.38,3.35356773]
[1756883303297,2.65356773,208.43,208.39,0.7]
[1756883303497,43.05041621,208.42,208.39,0.7]
[1756883304214,38.9,208.41,208.39,0.7]
[1756883304793,43.05041621,208.41,208.39,0.7]
[1756883304998,43.05041621,208.41,208.36,4.79938567]
[1756883305198,43.05041621,208.41,208.4,0.7]
[1756883305398,38.9,208.41,208.4,5.49846449]
[1756883305896,38.86,208.41,208.4,5.49846449]
[1756883306694,4.15041621,208.43,208.4,5.49846449]
[1756883306919,4.15041621,208.43,208.41,0.7]
[1756883306920,38.86,208.42,208.41,0.7]
[1756883307303,38.84,208.44,208.42,4.79800403]
[1756883307501,38.82,208.44,208.43,4.85041621]
[1756883308202,0.68,208.52,208.43,4.85041621]
[1756883308203,18.56968034,208.5,208.43,4.85041621]
[1756883308401,38.82,208.49,208.44,0.7]
[1756883308604,38.82,208.49,208.44,4.85041621]
[1756883308808,38.82,208.49,208.45,0.7]
[1756883309018,4.15041621,208.49,208.46,0.7]
[1756883309223,38.82,208.48,208.44,4.15041621]
[1756883309402,38.82,208.48,208.45,5.4973135]
[1756883309600,38.82,208.48,208.46,0.7]
[1756883311101,0.06,208.53,208.47,4.85041621]
[1756883311320,0.06,208.53,208.51,8.94634925]
[1756883311525,38.76,208.52,208.51,34.94634925]
[1756883311830,38.76,208.52,208.51,35.64634925]
[1756883312828,0.06,208.53,208.51,35.64634925]
[1756883313014,0.06,208.53,208.52,0.7]
[1756883313335,0.06,208.53,208.52,5.49570305]
[1756883313837,0.06,208.53,208.52,9.64611926]
[1756883315033,0.06,208.53,208.52,5.49570305]
[1756883315234,0.06,208.53,208.52,9.64611926]
[1756883315810,1e-08,208.53,208.52,9.64611926]
[1756883316020,1e-08,208.53,208.52,23.24171327]
[1756883316619,0.06,208.58,208.52,23.24171327]
[1756883316620,0.06,208.58,208.56,13.59559401]
[1756883316826,38.66,208.63,208.61,4.15041621]
[1756883317229,38.66,208.63,208.58,4.85041621]
[1756883317230,39.34,208.63,208.58,4.85041621]
[1756883317426,39.34,208.63,208.59,4.79409367]
[1756883318425,0.68,208.62,208.57,9.64475648]
[1756883318621,0.68,208.61,208.57,4.79434027]
[1756883319340,0.68,208.61,208.57,5.49434027]
[1756883319638,42.81041621,208.63,208.57,9.64475648]
[1756883319938,42.81041621,208.63,208.59,4.79409367]